Workbook

Sheet Početak
A2: Početak rada s formulama
A3: U samo nekoliko koraka bit ćete spremni za stvaranje formula i funkcija u aplikaciji Excel, najboljoj aplikaciji za rad s proračunskim tablicama na svijetu.
A4: Vratite se na vrh tako da pritisnete CTRL + HOME. Da biste pokrenuli vodič, pritisnite CTRL + PAGE DOWN.

Sheet Osnove
A1: Osnove: računanje pomoću programa Excel
A2: U programu Excel možete zbrajati, oduzimati, množiti i dijeliti bez upotrebe ugrađenih funkcija. Dovoljni su osnovni operatori: +, -, *, /. Sve formule počinju znakom jednakosti (=). | C2: Brojevi koje možete koristiti: | E2: Operacija: | F2: Formule: | G2: Odgovori:
A3: Da biste zbrajali, odaberite ćeliju F3, upišite =C3+C4 pa pritisnite Enter. | C3: 1 | E3: Zbrajanje (+) | G3: =C3+C4 -> 3
A4: Da biste oduzimali, odaberite ćeliju F4, upišite =C3-C4 pa pritisnite Enter. | C4: 2 | E4: Oduzimanje (-) | G4: =C3-C4 -> -1
A5: Da biste množili, odaberite ćeliju F5, upišite =C3*C4 pa pritisnite Enter. | E5: Množenje (*) | G5: =C3*C4 -> 2
A6: Da biste dijelili, odaberite ćeliju F6, upišite =C3/C4 pa pritisnite Enter. | E6: Dijeljenje (/) | G6: =C3/C4 -> 0.5
A7: Obratite pozornost: promijenite brojeve u ćelijama C3 i C4 i pratite kako će se rezultati formule automatski promijeniti. | E7: Potenciranje (^) | G7: =C3^C4 -> 1
A8: ZA NAPREDNE: Vrijednost možete potencirati pomoću simbola karat (^), primjerice =A1^A2. Unesite ga pomoću kombinacije tipki Shift + 6. U ćeliju F7 unesite =C3^C4.
A9: Potražite još pojedinosti
A10: Sljedeći korak
A11: Dodatne informacije o formulama, ćelijama i rasponima
A12: Excel se sastoji od pojedinačnih ćelija grupiranih u retke i stupce. Reci su označeni brojevima, a stupci slovima. Excel sadrži ukupno više od milijun redaka i 16 000 stupaca u koje možete umetati formule.
A13: Formule mogu sadržavati reference na ćelije, raspone referenci na ćelije, operatore i konstante. U nastavku pogledajte primjere formula: =A1+B1 =10+20 =SUM(A1:A10)
A14: Primijetit ćete da smo u trećem primjeru koristiti funkciju SUM. Funkcija je unaprijed definirana naredba koji uzima vrijednost ili vrijednosti, izvodi izračune na određeni način i vraća rezultate. Funkcija SUM, primjerice, uzima reference na ćelije ili raspone koje navedete te ih zbraja. U ovom primjeru funkcija uzima ćelije od A1 do A10 te ih zbraja. Excel ima više od 400 funkcija koje možete pogledati na kartici Formule.
A15: Formule s funkcijama počinju znakom jednakosti, a iza njega slijedi naziv funkcije i njezini argumenti (vrijednosti koje funkcija koristi za izračun) u zagradama.
A16: Provjerite formulu tako da pritisnete Enter. Kada to učinite, formula će provesti izračun i prikazati rezultat u ćeliji. Da biste vidjeli samu formulu, pogledajte traku formule ispod vrpce ili pritisnite F2 da biste otvorili način za uređivanje i vidjeli formulu u ćeliji. Da biste dovršili formulu i izračunali rezultat, ponovno pritisnite Enter.
A17: Objašnjenja formula
A18: =10+20 je formula u kojoj su 10 i 20 konstante, a znak + operator.
A19: =SUM(A1:A10) je formula u kojoj SUM predstavlja naziv funkcije, otvorena i zatvorena zagrada sadrže argumente formule, a A1:A10 je raspon ćelija za funkciju.
A20: =SUM(A1:A10;C1:C10) je formula u kojoj SUM predstavlja naziv funkcije, otvorena i zatvorena zagrada sadrže argumente formule, a A1:A10;C1:C10 su rasponi ćelija za funkciju odvojeni točkom sa zarezom.
A21: DOBRO JE ZNATI: Konstante su vrijednosti koje unosite u ćelije ili formule. Iako će =10+20 dati isti rezultat kao i =A1+B1, upotreba konstanti ne smatra se dobrom praksom. Zašto? Zato jer konstantu ne možete jednostavno vidjeti ako ne odaberete ćeliju i ako je ne potražite unutar ćelije. To vam može otežati naknadnu promjenu konstante. Puno je lakše umetnuti konstante u ćelije u kojima ih jednostavno možete prilagođavati i referencirati u formulama. Primjerice: Odaberite žutu ćeliju s vrijednošću 12 u nastavku. Primijetite da smo upotrijebili funkciju SUM s rasponom ćelija. Nismo upisali "4" ni "8" izravno o formulu.
A22: Prethodno
A23: Dalje
A24: Više informacija na webu
A25: Upotreba programa Excel kao kalkulatora
A26: Pregled formula u programu Excel
A27: Funkcije programa Excel (po kategoriji)
A28: Funkcije programa Excel (abecedni redoslijed)
A29: Besplatni tečajevi za Excel na internetu
J40: Vrijednosti
J41: 4
J42: 8
J43: =SUM(J41:J42) -> 12

Sheet Uvod u funkcije
A1: Uvod u funkcije
A2: Funkcije vam omogućuju mnogo toga, primjerice izvođenje matematičkih operacija, traženje vrijednosti te izračun datuma i vremena. Pokušajmo na nekoliko načina zbrojiti vrijednosti pomoću funkcije SUM. | C2: Voće | D2: Iznos | F2: Meso | G2: Iznos
A3: U stupac Količina za Voće (ćelija D7) unesite =SUM(D3:D6) ili =SUM( pa odaberite raspon pomoću miša, a zatim pritisnite Enter. Tom ćete funkcijom zbrojiti vrijednosti ćelija D3, D4, D5 i D6. Odgovor mora biti 170. | C3: Jabuke | D3: 50 | F3: Govedina | G3: 50
A4: Isprobajmo sada Automatski zbroj. Odaberite ćeliju u stupcu Meso (ćeliju G7) pa idite na Formule > Automatski zbroj > odaberite SUM. Excel će automatski unijeti formulu umjesto vas. Pritisnite Enter da biste je potvrdili. Značajka Automatski zbroj sadrži sve najčešće korištene funkcije. | C4: Naranče | D4: 20 | F4: Piletina | G4: 30
A5: Evo jednog korisnog tipkovnog prečaca. Odaberite ćeliju D15, pritisnite tipku Alt =, a zatim Enter. Time ćete automatski unijeti SUM. | C5: Banane | D5: 60 | F5: Svinjetina | G5: 10
A6: Potražite još pojedinosti | C6: Limuni | D6: 40 | F6: Riba | G6: 50
A7: ZA NAPREDNE Isprobajte funkciju COUNT pomoću jedne od metoda s kojima ste već upoznati. Funkcija COUNT broji ćelije u rasponu koje sadrže brojeve. | C7: SUM > | D7: =SUM(D3:D6) -> 170 | F7: SUM >
A8: Sljedeći korak
A9: Dodatne informacije o funkcijama | C9: Artikl | D9: Iznos | F9: Artikl | G9: Iznos
A10: Idite na karticu Formule i pregledajte biblioteka funkcija u kojoj su funkcije navedene prema kategoriji, primjerice Tekstne, Datum i vrijeme i sl. Umetani funkciju omogućit će vam pretraživanje funkcija prema nazivu i pokretanje čarobnjaka za funkcije koji će vam pomoći u stvaranju formule. Kada počnete upisivati naziv funkcije nakon što pritisnete =, Excel će pokrenuti Intellisense, značajku koja će prikazati sve funkcije koje počinju slovima koje ste upisali. Kada pronađete željenu funkciju, pritisnite tabulator da bi Excel automatski dovršio naziv funkcije i umjesto vas umetnuo otvorenu zagradu. Excel će prikazati i neobavezne i obavezne argumente. Pogledajmo sada strukturu nekih funkcija. Funkcija SUM strukturirana je na sljedeći način: | C10: Kruh | D10: 50 | F10: Kruh | G10: 50
A11: Da funkcija SUM možete pričati, izgovorila bi sljedeće: "Vrati zbroj svih vrijednosti u ćelijama od D35 do D38 i svih vrijednosti u stupcu H." SUM je naziv funkcije, D35:D38 prvi je argument raspona, koji je gotovo uvijek potreban, a H:H drugi je argument raspona odvojen od prvog raspona točkom sa zarezom. Pogledajmo primjer u kojem argumenti nisu potrebni. | C11: Krafne | D11: 100 | F11: Krafne | G11: 100
A12: Funkcija TODAY vraća današnji datum. Automatski se ažurira kada Excel provede ponovni izračun. | C12: Keksi | D12: 40 | F12: Keksi | G12: 40
A13: POGLEDAJTE OVO Odaberite ove ćelije. Zatim u donjem desnom kutu aplikacije potražite SUM: 170 na donjoj traci. Ta se traka naziva traka stanja te predstavlja još jedan način na koji brzo možete saznati ukupan zbroj i druge detalje o odabranoj ćeliji ili rasponu. | C13: Kolači | D13: 50 | F13: Kolači | G13: 50
A14: VAŽNE POJEDINOSTI Dvaput kliknite tu ćeliju. Pri kraju ćete primijetiti 100. Iako je moguće tako uvrstiti brojeve u formulu, ne preporučujemo to osim ako je to apsolutno nužno. To je konstanta i lako je na nju zaboraviti. Preporučujemo da se referirate na drugu ćeliju, npr. F51. Tako ju je lako vidjeti, a nije skrivena u formuli. | C14: Pite | D14: 20 | F14: Pite | G14: 20
A15: Više informacija na webu | C15: SUM > | F15: COUNT >
A16: Sve o funkciji SUM
A17: Upotreba automatskog zbroja za zbrajanje brojeva
A18: Sve o funkciji COUNT
A19: Besplatni tečajevi za Excel na internetu
A20: Povratak na vrh
A21: Sljedeći korak
C34: Voće | D34: Iznos
C35: Jabuke | D35: 50
C36: Naranče | D36: 20
C37: Banane | D37: 60
C38: Limuni | D38: 40
C39: SUM > | D39: =SUM(D35:D38) -> 170
C44: Artikl | D44: Iznos
C45: Automobili | D45: 20
C46: Kamioni | D46: 10
C47: Bicikli | D47: 10
C48: Koturaljke | D48: 40
D50: Ukupni zbroj: | F50: Dodatna vrijednost | G50: Novi ukupni zbroj
D51: =SUM(D45:D48,100) -> 180 | F51: 100 | G51: =SUM(D45:D48,F51) -> 180

Sheet AVERAGE
A1: Funkcija AVERAGE
A2: Da biste dobili prosjek brojeva u rasponu ćelija, koristite funkciju AVERAGE. | C2: Voće | D2: Iznos | F2: Meso | G2: Iznos
A3: Odaberite ćeliju D7 pa pomoću funkcije Automatski zbroj dodajte funkciju AVERAGE. | C3: Jabuke | D3: 50 | F3: Govedina | G3: 50
A4: Sada odaberite ćeliju G7 i unesite funkciju AVERAGE tako da upišete =AVERAGE(G3:G6). | C4: Naranče | D4: 20 | F4: Piletina | G4: 30
A5: U ćeliji D15 možete pomoću funkcije Automatski zbroj ili upisivanja unijeti još jednu funkciju AVERAGE. | C5: Banane | D5: 60 | F5: Svinjetina | G5: 10
A6: POGLEDAJTE OVO Odaberite bilo koji raspon brojeva, a zatim na traci stanja potražite brzo izračunat prosjek. | C6: Limuni | D6: 40 | F6: Riba | G6: 50
A7: Aktivacija prethodnog lista | C7: AVERAGE > | F7: AVERAGE >
A8: Prelazak na sljedeći list
A9: ZA NAPREDNE Ovdje pokušajte upotrijebiti MEDIAN ili MODE. MEDIAN vam daje vrijednost u sredini skupa podataka, a MODE vrijednost koja se najčešće pojavljuje. | C9: Artikl | D9: Iznos | F9: Artikl | G9: Iznos
A10: Veze na dodatne informacije na webu | C10: Kruh | D10: 50 | F10: Kruh | G10: 50
A11: Odaberite da biste na webu saznali sve o funkciji AVERAGE | C11: Krafne | D11: 100 | F11: Krafne | G11: 100
A12: Odaberite da biste na webu saznali sve o funkciji MEDIAN | C12: Keksi | D12: 40 | F12: Keksi | G12: 40
A13: Odaberite da biste na webu saznali sve o funkciji MODE | C13: Kolači | D13: 50 | F13: Kolači | G13: 50
A14: Odaberite da biste na webu saznali o besplatnim tečajevima za Excel | C14: Pite | D14: 20 | F14: Pite | G14: 20
C15: AVERAGE >

Sheet MIN i MAX
A1: Funkcije MIN i MAX
A2: Upotrijebite funkciju MIN da biste dobili najmanji broj u rasponu ćelija. | C2: Voće | D2: Iznos | F2: Meso | G2: Iznos
A3: Upotrijebite funkciju MAX da biste dobili najveći broj u rasponu ćelija. | C3: Jabuke | D3: 50 | F3: Govedina | G3: 50
A4: Odaberite ćeliju D7 pa pomoću čarobnjaka za automatski zbroj dodajte funkciju MIN. | C4: Naranče | D4: 20 | F4: Piletina | G4: 30
A5: Zatim odaberite ćeliju G7 i unesite funkciju MAX tako da upišete =MAX(G3:G6). | C5: Banane | D5: 60 | F5: Svinjetina | G5: 10
A6: U ćeliji D15 možete upotrijebiti čarobnjak za automatski zbroj ili pak upisati funkciju MIN ili MAX. | C6: Limuni | D6: 40 | F6: Riba | G6: 50
A7: Više informacija na webu | C7: MIN > | F7: MAX >
A8: Sve o funkciji MIN
A9: Sve o funkciji MAX | C9: Artikl | D9: Iznos | F9: Artikl | G9: Iznos
A10: Besplatni tečajevi za Excel na internetu | C10: Kruh | D10: 50 | F10: Kruh | G10: 50
A11: DOBRO JE ZNATI Funkciju MIN ili MAX možete koristiti s više raspona ili vrijednosti da biste prikazali veću ili manju vrijednost, npr. =MIN(A1:A10;B1:B10) ili =MAX(A1:A10;B1) gdje B1 sadrži vrijednost ograničenja, primjerice 10, zbog čega formula nikada neće vratiti rezultat manji od 10. | C11: Krafne | D11: 100 | F11: Krafne | G11: 100
C12: Keksi | D12: 40 | F12: Keksi | G12: 40
C13: Kolači | D13: 50 | F13: Kolači | G13: 50
C14: Pite | D14: 20 | F14: Pite | G14: 20
C15: MIN ili MAX > | G15: =MIN(G10:G14,10) -> 10

Sheet Datum i vrijeme
A1: Funkcije datuma
A2: Excel vam može dati trenutni datum utemeljen na regionalnim postavkama vašeg računala. Datume možete dodavati i oduzimati.
A3: Pogledajte funkciju TODAY koja vam daje današnji datum. To je živa, odnosno promjenjiva funkcija. Ako radnu knjigu otvorite sutra, prikazat će se sutrašnji datum. Unesite =TODAY() u ćeliju D6.
A4: Oduzimanje datuma – unesite svoj sljedeći rođendan u obliku dd.mm.yy. u ćeliju D7 da biste u programu Excel saznali koliko je dana preostalo do vašeg rođendana pomoću formule =D7-D6 u ćeliji D8.
A5: Zbrajanje datuma – pretpostavimo da želite saznati kada morate platiti račun ili vratiti knjigu u knjižnicu. Da biste to saznali, možete zbrajati datume. U ćeliju D10 unesite nasumičan broj dana. U ćeliju D11 dodali smo =D6+D10 da bismo izračunali rok od današnjeg dana. | C5: Funkcije datuma
A6: DOBRO JE ZNATI Excel datume i vremena sprema kao broj dana koji je prošao od 1. siječnja 1900. Vremena se spremaju kao frakcijski dijelovi dana utemeljeni na minutama. 1. 1. 2017. 12.30 zapravo se sprema kao 42736.5208. Ako vam se vrijeme ili datum prikažu kao takvi brojevi, pritisnite Ctrl + 1 > Broj > odaberite oblik datuma ili vremena. | C6: Današnji datum: | F6: =IF(D6=TODAY(),"Tako je!","") -> 
A7: VAŽNE POJEDINOSTI Ako ne želite da Excel prikazuje negativne brojeve jer još niste unijeli svoj rođendan, možete upotrijebiti funkciju IF =IF(D7="";"";D7-D6) koja znači "Ako u ćeliji D7 nema vrijednost, nemoj prikazati ništa, a u suprotnom prikaži vrijednost ćelije D7 umanjenu za vrijednost ćelije D6". | C7: Vaš datum rođenja:
A8: Funkcije vremena | C8: Broj dana do rođendana: | D8: =D7-D6 -> 0
A9: Excel vam može dati trenutno vrijeme utemeljeno na regionalnim postavkama vašeg računala. Vremena možete i dodavati i oduzimati. Možda, primjerice, želite pratiti koliko je pojedini zaposlenik radio tijekom tjedna i na temelju toga izračunati plaću i naknadu za prekovremene sate.
A10: U ćeliju D28 unesite =NOW() da biste dobili trenutno vrijeme koje će se ažurirati prilikom svakog izračuna programa Excel. Ako želite promijeniti oblik vremena, pritisnite Ctrl + 1 > Broj > Vrijeme > odaberite željeni oblik. | C10: Broj dana mirovanja otplate:
A11: Zbrajanje sati između vremena – u ćeliju D36 unijeli smo formulu =((D35-D32)-(D34-D33))*24 koja izračunava vrijeme početka i završetka radnog vremena neke osobe pa oduzima vrijeme potrošeno na ručak. *24 na kraju formule pretvara frakcijski dio dana koji Excel vidi u sate. Ćeliju ćete morati oblikovati kao Broj. Da biste to učinili, idite na Polazno > Oblikovanje Ćelija(Ctrl + 1) >Broj > Brojčana >2 decimale. | C11: Datum dospijeća računa: | D11: =D6+D10 -> 00:00:00
A12: Da ta formula može pričati, izgovorila bi sljedeće: "Uzmi vrijednost Vrijeme dolaska i oduzmi je od vrijednosti Vrijeme Odlaska, a zatim oduzmi vrijednost Vrijeme Odlaska Na Ručak od vrijednosti Vrijeme Povratka S Ručka te ih pomnoži s 24 da bi frakcijsko vrijeme programa Excel pretvorio u sate", odnosno =((Vrijeme odlaska - Vrijeme dolaska)-(Vrijeme Povratka S Ručka - Vrijeme Odlaska Na Ručak))*24.
A13: Prethodno
A14: Dalje
A15: Više informacija na webu
A16: Sve o funkciji TODAY
A17: Sve o funkciji NOW
A18: Sve o funkciji DATE
A19: Besplatni tečajevi za Excel na internetu
C27: Funkcije vremena
C28: Trenutno vrijeme:
C31: Broj odrađenih sati u danu
C32: Vrijeme dolaska: | D32: 08:00:00
C33: Vrijeme odlaska na ručak: | D33: 12:00:00
C34: Vrijeme povratka s ručka: | D34: 13:00:00
C35: Vrijeme odlaska: | D35: 17:00:00
C36: Ukupan broj sati: | D36: =((D35-D32)-(D34-D33))*24 -> 8
C45: Statičan datum i vrijeme
C46: Datum: | D46: 2017-09-27
C47: Vrijeme: | D47: 08:52:00

Sheet Spajanje teksta i brojeva
A1: Spajanje teksta iz različitih ćelija
A2: Korisnici programa Excel često žele spojiti tekst koji se nalazi u različitim ćelijama. Ovaj je primjer vrlo čest: imate ime i prezime i želite ih spojiti kao ime, prezime ili pak kao puno ime i prezime. Srećom, Excel vam to omogućuje pomoću znaka & koji možete unijeti pomoću prečaca Shift + 6. | C2: Ime | D2: Prezime | E2: Prezime, ime | F2: Puno ime i prezime
A3: U ćeliju E3 unesite =D3&C3 da biste spojili prezimena i imena. | C3: Zrinka | D3: Jurić | E3: =D3&", "&C3 -> Jurić, Zrinka | F3: =C3&" "&D3 -> Zrinka Jurić
A4: JurićZrinka ne izgleda dobro. Treba nam zarez i razmak. Da bismo ih unijeli, upotrijebit ćemo navodnike da bismo stvorili novi tekstni niz. Ovaj put unesite =D3&", "&C3. Dio &", "& omogućuje nam da tekst u ćelijama spojimo sa zarezom i razmakom. | C4: Toni | D4: Perić
A5: Da bismo stvorili ime i prezime, spojit ćemo ime i prezime, ali ćemo umjesto zareza upotrijebiti razmak. U F3 unesite =C3&" "&D3. | C5: Sij | D5: Čeh
A6: Potražite još pojedinosti | C6: Franka | D6: Jozić
A7: Dalje | C7: Stjepan | D7: Horvat
A8: Spajanje teksta i brojeva | C8: Srećko | D8: Bošnjak
A9: Sada ćemo umjesto teksta i teksta pomoću znaka & spojiti tekst i brojeve. Pogledajte ćelije C28:D29. Vidite li da su datum i vrijeme u različitim ćelijama? Spojiti ih možete pomoću znaka & da biste dobili oblik koji vidite u ćelijama C32:C33. No to ne izgleda pravilno, zar ne? Nažalost, Excel ne zna na koji način želite oblikovati brojeve, pa ih raščlanjuje na najosnovniji oblik, u ovom slučaju serijski datum. Da bi se broj u tekstnom nizu prikazao na željeni način, u aplikaciji Excel točno morate navesti oblik dijela formule s brojevima. To možete učiniti pomoću funkcije TEXT i koda oblika. | C9: Robert | D9: Katić
A10: U ćeliju C36 unesite =C28&" "&TEXT(D28;"D.M.YYYY."). D.M.YYYY. hrvatski je kod oblika za dan.mjesec.godinu., primjerice 25.9.2017. | C10: Ivana | D10: Posavec
A11: U ćeliju C37 unesite =C29&" "&TEXT(D29;"H:MM"). H:MM hrvatski je kod oblika za sate:minute , primjerice 13:30.
A12: POGLEDAJTE OVO Formule, posebno one koje su dulje, mogu biti teške za čitanje, stoga ih možete raščlaniti na dijelove pomoću praznina: =C28 & " " & TEXT(D28;"D.M.YYYY.")
A13: VRIJEDNO ISTRAŽIVANJA Ako ne znate koji kod oblika koristiti, upotrijebite Ctrl + 1 > Broj da biste oblikovali ćeliju na željeni način. Zatim odaberite mogućnost Prilagođeno. Prikazani kod oblika možete kopirati u formulu.
A14: Više informacija na webu
A15: Sve o funkciji TEXT
A16: Kombiniranje teksta i brojeva
A17: Besplatni tečajevi za Excel na internetu
C27: Upotreba teksta i brojeva
C28: Današnji datum: | D28: =TODAY() -> 2021-10-19
C29: Trenutno vrijeme: | D29: =NOW() -> 44488.4098
C31: Spajanje teksta i brojeva
C32: =C28&" "&D28 -> Današnji datum: 44488
C33: =C29&" "&D29 -> Trenutno vrijeme: 44488.4097959491
C35: Oblikovanje teksta i brojeva
C36: =C28 &" "& TEXT(D28,"D.M.YYYY.") -> Današnji datum: 19.10.2021.
C37: =C29&" "&TEXT(D29,"H:MM") -> Trenutno vrijeme: 9:50

Sheet Izrazi IF
A1: Izrazi IF
A2: Izrazi IF omogućuju logičke usporedbe uvjeta. Izraz IF upućuje sustav da učini nešto ako je uvjet zadovoljen, a da u suprotnom učini nešto drugo. Formule mogu vraćati tekst, vrijednosti ili još izračuna.
A3: U ćeliju D9 unesite =IF(C9="Jabuka";TRUE;FALSE). Točan je odgovor TRUE.
A4: Kopirajte D9 u D10. Odgovor bi ovdje morao biti FALSE jer naranča nije jabuka.
A5: Pogledajmo još jedan primjer, odnosno formulu u ćeliji D12. Tu je za početak već uneseno =IF(C12<100;"Manje od 100";"Veće od ili jednako 100"). Što će se dogoditi ako u ćeliju C12 unesete broj veći od 100?
A6: VAŽNE POJEDINOSTI TRUE i FALSE razlikuju se od ostalih riječi u formulama programa Excel jer ne moraju biti u navodnicima i jer ih Excel automatski upisuje velikim slovima. Ni brojevi ne moraju biti u navodnicima. Običan tekst, primjerice Da ili Ne, mora biti u navodnicima: =IF(C9=“Jabuka","Da","Ne")
A7: Potražite još pojedinosti
A8: Dalje | C8: Izrazi IF
A9: Izraz IF s drugom funkcijom | C9: Jabuka
A10: Izrazi IF mogu u slučaju zadovoljenja određenog uvjeta rezultirati izvođenjem dodatnih izračuna. Ovdje ćemo procjenom ćelije utvrditi je li potrebna naplata poreza te ćemo u slučaju zadovoljenja tog uvjeta izračunati porez. | C10: Naranča
A11: U ćeliju F33 unijeli smo =IF(E33="Da";F31*Porez;0), a Porez smo postavili kao imenovani raspon s vrijednošću od 0,0825. Naša formula upućuje sustav da ćeliju F31 pomnoži s vrijednošću ćelije Porez ako E33 ima vrijednost Da, a u suprotnom da vrati 0. Pokušajte u ćeliji E33 Da promijeniti u Ne da biste vidjeli kako će se izračun promijeniti.
A12: Nakon toga dodali smo izraz IF radi izračuna troškova otpreme (ako je potreban). U ćeliji F35 vidite =IF(E35="Da";SUM(D28:D29)*1,25;0). To znači "Ako ćelija E35 ima vrijednost Da, zbroj iz stupca Količina u gornjoj tablici pomnoži s 1,25, a u suprotnom vrati 0". | C12: 50 | D12: =IF(C12<100,"Manje od 100","Veće od ili jednako 100") -> Manje od 100
A13: Nakon toga promijenite 1,25 u formuli u ćeliji F35 u "Otprema". Kada počnete tipkati, funkcija automatskog ispravljanja programa Excel pronaći će ćeliju umjesto vas. Kada je pronađe, pritisnite tabulator da biste ušli u ćeliju. To je imenovani raspon koji smo unijeli u odjeljku Formule > Definiraj naziv. Ako ćete od sada morati promijeniti trošak otpreme, morat ćete to učiniti samo na jednom mjestu, a naziv Otprema moći ćete koristiti bilo gdje u radnoj knjizi.
A14: DOBRO JE ZNATI Kada stvorite formulu, Excel će automatski oko svih raspona navedenih u formuli postaviti obrube u boji, a isti će rasponi u formuli biti iste boje. To možete vidjeti ako odaberete ćeliju F33 i pritisnete F2 da biste uredili formulu.
A15: SAVJET STRUČNJAKA Imenovani rasponi omogućuju vam definiranje pojmova ili vrijednosti na jednom mjestu te njihovu ponovnu upotrebu u cijeloj radnoj knjizi. Da biste pogledali sve imenovane raspone u radnoj knjizi, idite na Formule > Upravitelj naziva. Kliknite ovdje da biste saznali više.
A16: Prethodno
A17: Dalje
A18: Više informacija na webu
A19: Sve o funkciji IF
A20: Sve o funkciji IFS
A21: Napredni izrazi IF
A22: Besplatni tečajevi za Excel na internetu
C27: Artikl | D27: Količina | E27: Cijena | F27: Ukupno
C28: Widget | D28: 2 | E28: 9.76 kn | F28: ='Izrazi IF'!$E$28:$E$29*'Izrazi IF'!$D$28:$D$29 -> 19.52 kn
C29: Pomagalo | D29: 3 | E29: 3.42 kn | F29: 10.26 kn
D31: Podzbroj | E31: =SUM('Izrazi IF'!$E$28:$E$29) -> 13.18 kn | F31: =SUM('Izrazi IF'!F28:F28) -> 19.52 kn
D33: Porez? | E33: Da | F33: =IF(E33="Da",F31*Porez,0) -> 1.61 kn
D35: Otprema? | E35: Da | F35: =IF(E35="Da",SUM(D28:D29)*1.25,0) -> 6.25 kn
D37: Ukupno | F37: =SUM(F33,F31,F35) -> 27.38 kn

Sheet VLOOKUP
A1: VLOOKUP
A2: VLOOKUP jedna je od najčešće korištenih funkcija u programu Excel (i jedna od naših omiljenih funkcija!). VLOOKUP vam omogućuje traženje vrijednosti u stupcu s lijeve strane. Ako pronađe podudarnu vrijednost, funkcija vraća podatak u drugi stupac s desne strane. VLOOKUP kaže:
A3: =VLOOKUP(A1;B:C;2;FALSE)
A4: Što želite potražiti?
A5: Ako to pronađete, u koliko stupaca s desne strane želite unijeti vrijednost?
A6: Gdje želite to potražiti?
A7: Želite li točno ili približno podudaranje?
A8: U ćeliju D22 unesite =VLOOKUP(C22;C17:D20;2;FALSE). Točan odgovor za Jabuke jest 50. Funkcija VLOOKUP tražila je jabuke, pronašla ih, a zatim je u stupac s desne strane unijela njihovu količinu.
A9: Isprobajte sami funkciju u odjeljku Meso u ćeliji G22. Formula bi trebala izgledati ovako: =VLOOKUP(F22;F17:G20;2;FALSE).
A10: EKSPERIMENTIRAJTE Pokušajte odabrati različite stavke s padajućih popisa. Vidjet ćete da se ćelije s rezultatima odmah ažuriraju novim vrijednostima.
A11: Potražite još pojedinosti
A12: Dalje
A13: VLOOKUP i #N/A
A14: Prije ili kasnije naići ćete na slučaj u kojem VLOOKUP neće moći pronaći ono što tražite te zbog toga vratiti pogrešku (#N/A). Ponekad se ta pogreška javlja jer vrijednost koju tražite jednostavno ne postoji, a može se javiti i zato jer referentna ćelija još nema vrijednost.
A15: Ako ste sigurni da vrijednost koju tražite postoji, ali želite sakriti pogrešku ako je ćelija za traženje prazna, upotrijebite izraz IF. U ovom ćemo slučaju ugnijezditi postojeću formulu VLOOKUP kao što je ova u ćeliji D43: =IF(C43="";"";VLOOKUP(C43;C37:D41;2;FALSE)) To sustavu govori da ne vraća ništa ako ćelija C43 ne sadrži vrijednost (""), a u suprotnom da vrati rezultate funkcije VLOOKUP. Obratite pozornost na drugu zatvorenu zagradu na kraju formule. Ona zatvara izraz IF.
A16: Ako niste sigurni postoji li vrijednost koju tražite, ali svejedno želite otkloniti pogrešku #N/A, u ćeliji G43 možete upotrijebiti funkciju za rukovanje pogreškama naziva IFERROR: =IFERROR(VLOOKUP(F43;F37:G41;2;FALSE);""). Ako VLOOKUP vrati valjani rezultat, IFERROR će prikazati taj rezultat, a u suprotnom će prikazati prazninu (""). Ovdje smo prikazali prazninu (""), no možete koristiti i brojeve (0,1, 2 itd.) ili tekst, primjerice "Formula nije točna". | C16: Voće | D16: Iznos | F16: Meso | G16: Iznos
A17: VAŽNE POJEDINOSTI IFERROR je sveobuhvatna funkcija za rukovanje pogreškama, što znači da će otkloniti sve pogreške koje formula vrati. To može uzrokovati probleme kada vam Excel želi prikazati obavijest da formula sadrži stvarnu pogrešku koju je potrebno riješiti. U praksi se dodavanje funkcija za upravljanje pogreškama u formule ne preporučuje ako niste sigurni da će funkcionirati na pravilan način. | C17: Jabuke | D17: 50 | F17: Govedina | G17: 50
A18: Prethodno | C18: Naranče | D18: 20 | F18: Piletina | G18: 30
A19: Dalje | C19: Banane | D19: 60 | F19: Svinjetina | G19: 10
A20: Više informacija na webu | C20: Limuni | D20: 40 | F20: Riba | G20: 50
A21: Sve o funkciji VLOOKUP
A22: Sve o funkcijama INDEX/MATCH | C22: Jabuke | F22: Svinjetina
A23: Sve o funkciji IFERROR
A24: Upotreba zaokretnih tablica radi analize podataka na radnom listu
A25: Besplatni tečajevi za Excel na internetu
C35: Kad bi funkcija SUM u ćeliji D42 mogla govoriti, rekla bi ovo: Zbroji vrijednosti u ćelijama D38, D39, D40 i D41.
C36: Artikl | D36: Iznos | F36: Artikl | G36: Iznos
C37: Kruh | D37: 50 | F37: Kruh | G37: 50
C38: Krafne | D38: 100 | F38: Krafne | G38: 100
C39: Keksi | D39: 40 | F39: Keksi | G39: 40
C40: Kolači | D40: 50 | F40: Kolači | G40: 50
C41: Pite | D41: 20 | F41: Pite | G41: 20
D43: =VLOOKUP(C43,C37:D41,2,FALSE) ->  | F43: Tijesto | G43: =IFERROR(VLOOKUP(F43,F37:G41,2,FALSE),"") -> 

Sheet Uvjetne funkcije
A1: Uvjetne funkcije – SUMIF
A2: Uvjetne funkcije omogućuju vam zbrajanje, računanje prosjeka, utvrđivanje ukupnog broja vrijednosti te minimalne ili maksimalne vrijednosti u rasponu na temelju zadanog uvjeta ili kriterija koji sami odredite. Pomoću uvjetnih funkcija možete, primjerice, utvrditi koliko je jabuka u ukupnom broju komada voća na popisu. Isto tako možete utvrditi i koliko je naranči vrste Florida. | C2: Voće | D2: Iznos | F2: Voće | G2: Vrsta | H2: Iznos | Z2: Voće | AB2: Jabuke | AD2: Naranče | AF2: Banane | AH2: Limuni
A3: Funkcija SUMIF omogućuje vam zbrajanje u jednom rasponu na temelju kriterija iz drugog raspona, primjerice ukupnog broja jabuka. Odaberite ćeliju D17 pa upišite =SUMIF(C3:C14;C17;D3:D14). Funkcija SUMIF strukturirana je na sljedeći način: | C3: Jabuke | D3: 50 | F3: Jabuke | G3: Fuji | H3: 50 | Z3: Jabuke | AB3: Fuji | AD3: Florida | AF3: Cavendish | AH3: Hrapavi
A4: =SUMIF(C3:C14;C17;D3:D14) | C4: Naranče | D4: 20 | F4: Naranče | G4: Florida | H4: 20 | Z4: Naranče | AB4: Honeycrisp | AD4: Navel | AF4: Lady Finger | AH4: Eureka
A5: Koji raspon želite pogledati? | C5: Banane | D5: 60 | F5: Banane | G5: Cavendish | H5: 60 | Z5: Banane
A6: Koju vrijednost (tekst ili broj) želite potražiti? | C6: Limuni | D6: 40 | F6: Limuni | G6: Hrapavi | H6: 40 | Z6: Limuni
A7: U kojem rasponu želite zbrojiti vrijednosti za svako podudaranje? | C7: Jabuke | D7: 50 | F7: Jabuke | G7: Honeycrisp | H7: 50
A8: SUMIFS je ista funkcija kao i SUMIF, ali vam omogućuje upotrebu više kriterija. U ovom primjeru umjesto vrijednosti vrste Voće možete tražiti vrijednosti Voće i Vrsta. Odaberite ćeliju H17 i upišite =SUMIFS(H3:H14;F3:F14;F17;G3:G14;G17). Funkcija SUMIFS strukturirana je na sljedeći način: | C8: Naranče | D8: 20 | F8: Naranče | G8: Navel | H8: 20
A9: =SUMIFS(H3:H14;F3:F14;F17;G3:G14;G17) | C9: Banane | D9: 60 | F9: Banane | G9: Lady Finger | H9: 60
A10: Koji raspon želite zbrojiti? | C10: Limuni | D10: 40 | F10: Limuni | G10: Eureka | H10: 40
A11: Ovo je prvi raspon koji će se pretraživati u podudaranjima | C11: Jabuke | D11: 50 | F11: Jabuke | G11: Honeycrisp | H11: 50
A12: Ovo su kriteriji za prvo podudaranje | C12: Naranče | D12: 20 | F12: Naranče | G12: Navel | H12: 20
A13: Ovo je drugi raspon koji će se pretraživati u podudaranjima | C13: Banane | D13: 60 | F13: Banane | G13: Cavendish | H13: 60
A14: Ovo su kriteriji za drugo podudaranje | C14: Limuni | D14: 40 | F14: Limuni | G14: Eureka | H14: 40
A15: SAVJET STRUČNJAKA Svaka ćelija s voćem ili vrstom sadrži padajući popis s kojeg možete odabrati razno voće. Isprobajte tu mogućnost i pratite kako će se formule automatski ažurirati.
A16: Potražite još pojedinosti | C16: Voće | D16: SUMIF | F16: Voće | G16: Vrsta | H16: SUMIFS
A17: Sljedeći korak | C17: Jabuke | F17: Naranče | G17: Florida
A18: Uvjetne funkcije – COUNTIF
A19: COUNTIF i COUNTIFS omogućuju brojanje vrijednosti u rasponu na temelju kriterija koje odredite. Malo se razlikuju od ostalih funkcija IF i IFS jer imaju samo raspon kriterija i kriterij. Ne vrednuju jedan raspon i ne traže u drugom rasponu vrijednost za sažimanje.
A20: Odaberite ćeliju D64 pa upišite =COUNTIF(C50:C61;C64). Funkcija COUNTIF strukturirana je na sljedeći način:
A21: =COUNTIF(C50:C61;C64)
A22: Koji raspon želite pogledati?
A23: Koju vrijednost (tekst ili broj) želite potražiti?
A24: COUNTIFS je ista funkcija kao SUMIF, ali vam omogućuje upotrebu više kriterija. U ovom primjeru umjesto po vrijednosti Voće, možete tražiti vrijednosti Voće i Vrsta. Odaberite ćeliju H64 pa upišite =COUNTIFS(F50:F61;F64;G50:G61;G64). Funkcija COUNTIFS strukturirana je na sljedeći način:
A25: =COUNTIFS(F50:F61;F64;G50:G61;G64)
A26: Ovo je prvi raspon za brojanje
A27: Ovo su kriteriji za prvo podudaranje
A28: Ovo je drugi raspon za brojanje
A29: Ovo su kriteriji za drugo podudaranje
A30: Potražite još pojedinosti
A31: Dalje
A32: Više uvjetnih funkcija
A33: Već ste se upoznali s funkcijama SUMIF, SUMIFS, COUNTIF i COUNTIFS. Sada samostalno isprobajte ostale funkcije, primjerice AVERAGEIF/S, MAXIFS, MINIFS. Sve te funkcije strukturirane su na isti način. Kada jednom upišete formulu, zamijenite naziv funkcije željenim nazivom. Sve funkcije koje će vam trebati navedene su u ćeliji E106. Kopirajte ih i zalijepite ili ih sami upišite za vježbu. SUMIF =SUMIF(C92:C103;C106;E92:E103) SUMIFS =SUMIFS(E92:E103;C92:C103;C106;D92:D103;D106) AVERAGEIF =AVERAGEIF(C92:C103;C106;E92:E103) AVERAGEIFS =AVERAGEIFS(E92:E103;C92:C103;C106;D92:D103;D106) COUNTIF =COUNTIF(C92:C103;C106) COUNTIFS =COUNTIFS(C92:C103;C106;D92:D103;D106) MAXIFS =MAXIFS(E92:E103;C92:C103;C106;D92:D103;D106) MINIFS =MINIFS(E92:E103;C92:C103;C106;D92:D103;D106)
A34: Potražite još pojedinosti
A35: Dalje
A36: SUMIF s argumentom vrijednosti
A37: Pogledajte primjer funkcije SUMIF u kojoj se koristi izraz "veće od" (>) da bi se pronašle sve vrijednosti veće od odabranog iznosa:
A38: =SUMIF(D118:D122,">=50") -> 200
A39: Zbroji neke vrijednosti na temelju ovog kriterija:
A40: ...Pregledaj ove ćelije...
A41: ...i ako je vrijednost veća od 50, zbroji to.
A42: NAPOMENA: ako primijetite da koristite puno uvjetnih formula, možda je zaokretna tablica bolje rješenje. Pogledajte dodatne informacije u ovom članku o zaokretnim tablicama.
A43: Više informacija na webu
A44: Sve o funkciji SUMIF
A45: Sve o funkciji SUMIFS
A46: Sve o funkciji COUNTIF
A47: Sve o funkciji COUNTIFS
A48: Sve o funkciji AVERAGEIF
A49: Sve o funkciji AVERAGEIFS | C49: Voće | D49: Iznos | F49: Voće | G49: Vrsta | H49: Iznos
A50: Sve o funkciji MINIFS | C50: Jabuke | D50: 50 | F50: Jabuke | G50: Fuji | H50: 50
A51: Sve o funkciji MAXIFS | C51: Naranče | D51: 20 | F51: Naranče | G51: Florida | H51: 20
A52: Stvaranje padajućeg popisa | C52: Banane | D52: 60 | F52: Banane | G52: Cavendish | H52: 60
A53: Besplatni tečajevi za Excel na internetu | C53: Limuni | D53: 40 | F53: Limuni | G53: Hrapavi | H53: 40
A54: Povratak na vrh | C54: Jabuke | D54: 50 | F54: Jabuke | G54: Honeycrisp | H54: 50
A55: Dalje | C55: Naranče | D55: 20 | F55: Naranče | G55: Navel | H55: 20
C56: Banane | D56: 60 | F56: Banane | G56: Lady Finger | H56: 60
C57: Limuni | D57: 40 | F57: Limuni | G57: Eureka | H57: 40
C58: Jabuke | D58: 50 | F58: Jabuke | G58: Honeycrisp | H58: 50
C59: Naranče | D59: 20 | F59: Naranče | G59: Navel | H59: 20
C60: Banane | D60: 60 | F60: Banane | G60: Cavendish | H60: 60
C61: Limuni | D61: 40 | F61: Limuni | G61: Eureka | H61: 40
C63: Voće | D63: COUNTIF | F63: Voće | G63: Vrsta | H63: COUNTIFS
C64: Jabuke | D64: =COUNTIF(C50:C61,C64) -> 3 | F64: Naranče | G64: Florida | H64: =COUNTIFS(F50:F61,F64,G50:G61,G64) -> 1
C91: Voće | D91: Vrsta | E91: Iznos
C92: Jabuke | D92: Fuji | E92: 50
C93: Naranče | D93: Florida | E93: 20
C94: Banane | D94: Cavendish | E94: 60
C95: Limuni | D95: Hrapavi | E95: 40
C96: Jabuke | D96: Honeycrisp | E96: 50
C97: Naranče | D97: Navel | E97: 20
C98: Banane | D98: Lady Finger | E98: 60
C99: Limuni | D99: Eureka | E99: 40
C100: Jabuke | D100: Honeycrisp | E100: 50
C101: Naranče | D101: Navel | E101: 20
C102: Banane | D102: Cavendish | E102: 60
C103: Limuni | D103: Eureka | E103: 40
C105: Voće | D105: Vrsta | E105: Isprobajte
C106: Limuni | D106: Eureka | E106: =AVERAGEIFS(E92:E103,C92:C103,C106,D92:D103,D106) -> 40
C117: Stavka | D117: Iznos
C118: Kruh | D118: 50
C119: Krafne | D119: 100
C120: Keksi | D120: 40
C121: Kolači | D121: 50
C122: Pite | D122: 20
D123: =SUMIF(D118:D122,">=50") -> 200

Sheet Čarobnjak za funkcije
A1: Upotreba čarobnjaka za funkcije
A2: Ako znate naziv željene funkcije, ali niste sigurni kako je stvoriti, možete upotrijebiti čarobnjak za funkcije.
A3: Odaberite ćeliju D10, zatim idite na Formule > Umetni funkciju > upišite VLOOKUP u okvir Traži funkciju, pa pritisnite IDI. Kada vidite da je VLOOKUP označen, pri dnu kliknite U redu. Kada na popisu odaberete funkciju, Excel će prikazati njezinu sintaksu.
A4: U odgovarajuće tekstne okvire unesite argumente funkcije. Excel će nakon svakog unosa vrednovati funkciju te vam prikazati njezin rezultat, dok će pri dnu prikazati konačni rezultat. Tijekom prelaska s odjeljka na odjeljak pri dnu obrasca prikazuju se kriteriji za pojedini argument. Pritisnite U redu kada završite da bi Excel unio formulu umjesto vas. | C4: Voće | D4: Iznos
A5: POGLEDAJTE OVO Formula bi trebala izgledati ovako: =VLOOKUP(C10;C5:D8;2;FALSE) | C5: Jabuke | D5: 50
A6: DOBRO JE ZNATI Reference ćelija i raspona možete upisati ili odabrati mišem. | C6: Naranče | D6: 20
A7: DOBRO JE ZNATI Kada popunite odjeljak za pojedini argument, opis argumenta prikazat će se pri dnu obrasca iznad rezultata formule. | C7: Banane | D7: 60
A8: Prethodno | C8: Limuni | D8: 40
A9: Dalje
A10: Više informacija na webu | C10: Jabuke | D10: =VLOOKUP(C10,C5:D8,2,FALSE) -> 50
A11: Pregled formula u programu Excel
A12: Funkcije programa Excel (po kategoriji)
A13: Funkcije programa Excel (abecedni redoslijed)
A14: Besplatni tečajevi za Excel na internetu

Sheet Pogreške u formulama
A1: Otklanjanje pogrešaka u formulama
A2: Prije ili kasnije susrest ćete se s formulom s pogreškom koju će Excel prikazati kao #NazivPogreške. Pogreške mogu biti korisne jer vam daju do znanja da nešto ne funkcionira kako bi trebalo, no ponekad ih može biti teško otkloniti. Srećom, na raspolaganju vam je nekoliko mogućnosti pomoću kojih možete otkriti izvor pogreške te je otkloniti.
A3: Provjera pogrešaka –idite na Formule > Provjera pogrešaka. Kada to učinite, prikazat će se dijaloški okvir u kojem će biti navedeni općeniti uzrok pogreške. U ćeliji D9 pogreška #N/A pojavila se jer se nijedna vrijednost ne podudara s vrijednošću "Jabuka". Tu pogrešku možete otkloniti upotrebom postojeće vrijednosti, možete je nadjačati funkcijom IFERROR ili pak zanemariti jer znate da će nestati kada upotrijebite postojeću vrijednost. | C3: Voće | D3: Iznos
A4: Ako kliknete Pomoć za ovoj pogrešku, prikazat će se tema pomoći koja se odnosi na tu poruku o pogrešci. Ako kliknete Prikaz koraka izračuna, prikazat će se dijaloški okvir Analiza formule. | C4: Jabuke | D4: 50
A5: Excel će svaki puta kada kliknete Izračunaj proći kroz postupak formule korak po korak. Neće vas nužno obavijestiti zašto se pogreška pojavila, ali će vam pokazati gdje je došlo do pogreške. U tom okviru pogledajte temu pomoći da biste utvrdili zašto je formula rezultirala pogreškom. | C5: Naranče | D5: 20
A6: EKSPERIMENTIRAJTE Što ovdje nije u redu? Savjet: pokušavamo ZBROJITI sve stavke. | C6: Banane | D6: 60
A7: DOBRO JE ZNATI Kliknite Mogućnosti da biste postavili pravila prikaza ili zanemarivanja pogrešaka u programu Excel. | C7: Limuni | D7: 40
A8: Prethodno
A9: Dalje | C9: Jabuka | D9: =VLOOKUP(C9,C3:D7,2,FALSE) -> 
A10: Više informacija na webu
A11: Otkrivanje pogrešaka u formulama
A12: Izbjegavanje nepravilnih formula
A13: Postupno vrednovanje ugniježđene formule
A14: Besplatni tečajevi za Excel na internetu
C30: Voće | D30: Iznos
C31: Jabuke | D31: 50
C32: Naranče | D32: 20
C33: Banane | D33: 60
C34: Limuni | D34: 40
C36: Ukupno | D36: =sume(D31:D34) -> 

Sheet Saznajte više
A1: Imate li još pitanja o aplikaciji Excel?
A2: Pritisnite ALT+Q i unesite što želite znati.
A3: Nastavite. Možete naučiti još toga s aplikacijom Excel:
A4: Zajednica: Postavljajte pitanja i povežite se s drugim obožavateljima aplikacije Excel.
A5: Što je još novo? Pretplatnici na Office 365 stalno dobivaju ažuriranja i nove značajke.
